[Event "ITT 1st Parada Jamundi 2022"]
[Site "Jamundi Valle"]
[Date "2022.12.07"]
[Round "1.9"]
[White "Aguero Jimenez, Luis Lazaro"]
[Black "Pazos Gambarrotti, Plinio"]
[Result "1-0"]
[ECO "D01"]
[WhiteElo "2465"]
[BlackElo "2083"]
[Annotator "TA"]
[PlyCount "29"]
[EventDate "2022.12.05"]
[EventType "swiss"]
[EventCountry "COL"]
[SourceTitle "playchess.com"]
[Source "ChessBase"]
[SourceQuality "1"]
[TimeControl "5400+30"]

{[%evp 9,29,44,87,112,99,57,41,56,70,70,259,247,491,483,544,447,556,560,909,889,779,797]} 1. d4 {[%emt 0:01:31]} Nf6 {[%emt 0:00:08]} 2. Nc3 {[%emt 0:00:35]} d5 {[%emt 0:00:10]} 3. Bg5 {[%emt 0:00:04]} Nbd7 {[%emt 0:00:06]} 4. Nf3 {[%emt 0:00:15]} c5 {[%emt 0:03:35]} 5. dxc5 {[%emt 0:00:43]} Qa5 {[%emt 0:00:20] [#]} 6. Bxf6 $1 {[%emt 0:12:54] D01: Veresov Opening.} Nxf6 {[%emt 0:02:17]} 7. Qd4 {[%emt 0:01:26][%cal Oe2e4] e4! is the strong threat.} e6 $1 {[%emt 0:00:28]} 8. b4 {[%emt 0:00:26] White is slightly better.} Qd8 {[%emt 0:00:06]} 9. e4 {[%emt 0:01:40][%cal Be2e4,Be4d5,Bd5e6][%mdl 32] White is more active.} a5 $2 {[%emt 0:01:06] [#] Black cannot hold the game after this.} (9... dxe4 $14 10. Qxd8+ Kxd8 11. Rd1+ Ke7) 10. exd5 $1 $18 {[%emt 0:03:54] [#]} axb4 $146 {[%emt 0:02:26]} (10... exd5 11. O-O-O (11. Bb5+ Bd7 $18) 11... Be7) ({Predecessor:} 10... exd5 11. Bb5+ Bd7 12. O-O axb4 13. Rfe1+ Be7 14. Nxd5 Nxd5 15. Qxd5 Bxb5 16. Qxb7 O-O 17. Qxe7 {1-0 (31) Mihok,O (2493)-Burg,T (2504) Budapest 2015}) 11. Bb5+ {[%emt 0:01:01] White is clearly winning.} ({Not} 11. Qxb4 Qa5 12. Qxa5 Rxa5 $16) 11... Nd7 {[%emt 0:00:24]} 12. c6 {[%emt 0:08:10][%cal Bc5c6,Bc6c7][%mdl 32]} bxc3 {[%emt 0:00:44]} 13. Ne5 {[%emt 0:01:14]} Nxe5 {[%emt 0:03:44]} 14. c7+ {[%emt 0:00:27][%mdl 64] Discovered Attack} Qd7 {[%emt 0:00:06]} 15. dxe6 {[%emt 1:03:40] Weighted Error Value: White=0.19 (very precise) /Black=0.87} ({Less strong is} 15. Bxd7+ Nxd7 16. dxe6 (16. Qxc3 Nf6 $16) 16... fxe6 $18) 1-0

[Event "ITT 1st Parada Jamundi 2022"]
[Site "Jamundi Valle"]
[Date "2022.12.07"]
[Round "1.10"]
[White "Londono Lopez, Donaldo"]
[Black "Rios, Cristhian Camilo"]
[Result "0-1"]
[ECO "B80"]
[WhiteElo "2055"]
[BlackElo "2456"]
[Annotator "TA"]
[PlyCount "68"]
[EventDate "2022.12.05"]
[EventType "swiss"]
[EventCountry "COL"]
[SourceTitle "playchess.com"]
[Source "ChessBase"]
[SourceQuality "1"]
[TimeControl "5400+30"]

{[%evp 22,68,-13,-31,-22,-73,-26,-20,-13,-47,-18,-35,0,-30,79,64,99,6,2,-47,32,-18,37,17,54,71,114,-124,-107,-147,-181,-211,-102,-97,-84,-297,-258,-277,-277,-451,-404,-616,-602,-601,-600,-29995,-29996,-29997,-29998]} 1. e4 {[%emt 0:00:03]} c5 {[%emt 0:01:05]} 2. Nf3 {[%emt 0:00:31]} e6 {[%emt 0:00:14]} 3. d4 {[%emt 0:00:23]} cxd4 {[%emt 0:00:17]} 4. Nxd4 {[%emt 0:00:39]} Nf6 {[%emt 0:00:10]} 5. Nc3 {[%emt 0:00:37]} d6 {[%emt 0:00:08]} 6. Be3 {[%emt 0:01:36]} a6 {[%emt 0:01:47]} 7. Qd2 {[%emt 0:00:39]} b5 {[%emt 0:00:18]} 8. f3 {[%emt 0:00:32]} Nbd7 {[%emt 0:02:24]} 9. O-O-O {[%emt 0:03:47]} Bb7 {[%emt 0:00:51]} 10. g4 {[%emt 0:01:24]} Nb6 $1 {[%emt 0:04:01] 10...Nb6 is better than 10...h6.} 11. Qf2 {[%emt 0:06:05]} Nfd7 {[%emt 0:01:48]} 12. Kb1 {[%emt 0:06:58]} Rc8 {[%emt 0:03:47][%cal Oc8c3] [#] B80: Sicilian Scheveningen: 6 g3 and 6 Be3, including English Attack.} 13. Qe1 $146 {[%emt 0:05:30]} (13. Bd3 $11) ({Predecessor:} 13. Nce2 Qc7 14. Ng3 Na4 15. c3 Be7 16. h4 Ndc5 17. Rc1 d5 18. exd5 Bxd5 19. c4 bxc4 20. Bxc4 Bxc4 21. Rxc4 Nxb2 22. Qxb2 Qxg3 {1-0 (60) Stany,G (2502)-Babujian,L (2456) Ahmedabad 2018}) 13... Qc7 {[%emt 0:08:35]} (13... b4 $17 14. Nce2 Qc7) 14. Bd3 $11 {[%emt 0:03:54]} Nc5 {[%emt 0:06:24] The position is equal.} 15. Qd2 {[%emt 0:06:51]} b4 {[%emt 0:02:23]} 16. Nce2 {[%emt 0:00:19]} d5 {[%emt 0:00:11][%cal Rd5e4]} (16... Be7 {with more complications.} 17. Nb3 O-O 18. Qxb4 Nxd3 19. cxd3 Qc2+) 17. e5 {[%emt 0:15:15]} Nxd3 {[%emt 0:05:40]} (17... Be7 $11 {remains equal.}) 18. cxd3 $16 {[%emt 0:01:03]} Qxe5 {[%emt 0:00:07]} 19. h4 {[%emt 0:21:26]} (19. Rhe1 $16) 19... Qd6 $36 {[%emt 0:02:45][%mdl 2048] Black has some pressure.} 20. f4 {[%emt 0:02:53]} (20. Rc1 $11) 20... Be7 {[%emt 0:00:45]} (20... Nd7 $15) 21. g5 {[%emt 0:02:38]} ({White should play} 21. f5 $1 $14) 21... Na4 {[%emt 0:04:54]} (21... a5 $11) 22. f5 $14 {[%emt 0:04:09]} e5 {[%emt 0:00:39]} (22... Nc5 {simplifies} 23. Rhf1 g6 24. f6 Bf8) 23. f6 $1 {[%emt 0:00:24]} exd4 {[%emt 0:01:02]} 24. Bxd4 {[%emt 0:08:34]} (24. fxg7 $16 {keeps the pressure on.} Rg8 25. Nxd4 Nc3+ 26. bxc3 bxc3 27. Qc2 Rxg7 28. Nf5 Qb4+ 29. Ka1 Qb2+ 30. Qxb2 cxb2+ 31. Kxb2) 24... gxf6 $17 {[%emt 0:02:33]} 25. Rde1 {[%emt 0:02:44] Against b3. aiming for gxf6.} Kd7 {[%emt 0:02:01][%cal Be8d7,Bd7c6,Bc6b5,Bb5b6][%mdl 32]} 26. gxf6 {[%emt 0:02:17] [#]} Bd8 {[%emt 0:00:15]} (26... Bxf6 27. Rhf1 $11) (26... Bf8 $1 $19 {[%cal Ob4b3] and Black stays clearly on top. And now ...b3! would win.} 27. Qg5 Kd8) 27. Qg5 {[%emt 0:01:11] Prevents b3. Black must now prevent Be5.} Re8 {[%emt 0:07:23] Against Be5. Threatens to win with ...Bb6.} 28. Nf4 $2 {[%emt 0:00:25] Now White is beyond hope.} (28. Ng3 $17 {keeps fighting.} Nc3+ 29. bxc3 bxc3 30. Ka1 Rxe1+ 31. Rxe1) 28... Bc7 {[%emt 0:01:06]} (28... Qc6 29. Qf5+ Kd6 30. Be5+ (30. Qxh7 {leads to mate.} Rxe1+ 31. Rxe1 Qc2+ 32. Ka1 Qc1+ 33. Rxc1 Rxc1#) (30. Rc1 $2 Qb5 $19) 30... Rxe5 31. Qxe5+ Kd7 32. Qf5+ Kd6 33. Qe5+ (33. Qxh7 $2 Qc2+ 34. Ka1 Qxb2#) 33... Kd7 34. Qf5+ Kd6 35. Rh2 $14 (35. Qxh7 $2 Qc2+ 36. Ka1 Qxb2#)) 29. Qf5+ {[%emt 0:00:38]} Kc6 {[%emt 0:00:07]} 30. Nh5 $2 {[%emt 0:01:09] [#]} (30. Re7 Rxe7 31. fxe7 Qxf4 32. Qxc8 Bxc8 33. e8=Q+ Kb7 34. Rc1 Qxd4 35. Qc6+ Ka7 36. Qxc7+ Bb7 37. Qc2) 30... Kb5 {[%emt 0:02:54]} 31. Rc1 {[%emt 0:00:46]} (31. Rxe8 $142 Rxe8 32. Qf2) 31... Bb6 $19 {[%emt 0:02:29]} 32. Bxb6 {[%emt 0:00:38]} Kxb6 {[%emt 0:04:08]} 33. Qxh7 {[%emt 0:00:10]} Rxc1+ {[%emt 0:00:30]} 34. Rxc1 {[%emt 0:00:20]} Qh2 {[%emt 0:00:10][%csl LRb2,LRh4] Weighted Error Value: White=0.72/Black=0.33} 0-1

[Event "ITT 1st Parada Jamundi 2022"]
[Site "Jamundi Valle"]
[Date "2022.12.07"]
[Round "1.11"]
[White "Campos Gomez, Manuel"]
[Black "Gonzalez Velasco, Leandro"]
[Result "1-0"]
[ECO "E94"]
[WhiteElo "2322"]
[BlackElo "1915"]
[Annotator "TA"]
[PlyCount "105"]
[EventDate "2022.12.05"]
[EventType "swiss"]
[EventCountry "COL"]
[SourceTitle "playchess.com"]
[Source "ChessBase"]
[SourceQuality "1"]
[TimeControl "5400+30"]

{[%evp 13,105,38,63,0,68,61,67,60,64,65,67,74,98,87,101,80,77,74,108,76,81,77,84,71,99,89,90,85,86,75,133,58,191,122,136,89,106,77,80,76,82,82,80,73,111,78,95,79,85,82,89,89,160,91,106,64,166,154,168,164,161,109,142,114,136,134,133,0,0,0,0,0,0,0,0,0,0,0,0,-8,0,-204,0,-180,941,937,916,931,29989,29988,29992,29993,29993,29994]} 1. d4 {[%emt 0:00:06]} Nf6 {[%emt 0:00:35]} 2. c4 {[%emt 0:00:04]} g6 {[%emt 0:00:22]} 3. Nc3 {[%emt 0:00:07]} Bg7 {[%emt 0:00:06]} 4. e4 {[%emt 0:00:06]} d6 {[%emt 0:00:05]} 5. Be2 {[%emt 0:00:03]} O-O {[%emt 0:00:10]} 6. Nf3 {[%emt 0:00:02]} e5 {[%emt 0:00:17]} 7. O-O {[%emt 0:00:07]} c6 {[%emt 0:00:16]} 8. Rb1 {[%emt 0:02:26] E94: King's Indian: Classical: 6 Be2 e5 7 0-0: Various Black 7th moves.} (8. d5 $14) 8... Re8 {[%emt 0:02:17]} (8... exd4 $11 9. Nxd4 (9. Qxd4 Nxe4 10. Qxe4 Bf5 $15) 9... a5) 9. d5 $14 {[%emt 0:01:11]} Na6 {[%emt 0:03:36]} 10. Be3 {[%emt 0:15:08] [#] White is slightly better.} Ng4 $146 {[%emt 0:00:34]} ({Predecessor:} 10... c5 11. Ne1 Nd7 12. a3 f5 13. f3 Nf6 14. b4 b6 15. Nd3 h5 16. bxc5 bxc5 {1-0 (46) Burlai,O-Balber,G Simferopol 1991}) 11. Bg5 {[%emt 0:00:26]} f6 {[%emt 0:00:10]} 12. Bh4 {[%emt 0:00:04]} c5 {[%emt 0:00:46]} 13. Nd2 {[%emt 0:06:43]} Nh6 {[%emt 0:00:21]} 14. f3 {[%emt 0:00:49]} Nf7 {[%emt 0:00:57]} 15. a3 {[%emt 0:04:21]} b6 {[%emt 0:03:28]} 16. b4 {[%emt 0:01:20]} Bh6 {[%emt 0:05:38]} 17. Bd3 {[%emt 0:02:24]} Be3+ {[%emt 0:03:48]} 18. Kh1 {[%emt 0:00:13]} g5 {[%emt 0:07:24]} 19. Be1 {[%emt 0:00:37]} h5 {[%emt 0:04:37]} 20. Qe2 {[%emt 0:03:11]} Bd4 {[%emt 0:04:54]} 21. Nb5 {[%emt 0:00:36]} Qe7 {[%emt 0:23:43]} (21... Nc7 $142) 22. Bc2 {[%emt 0:03:00]} (22. Nxd4 $16 exd4 23. Bc2) 22... Bb7 {[%emt 0:05:11]} (22... Nc7 $14) 23. Rb3 {[%emt 0:05:53]} ({White should play} 23. f4 $18) 23... Kg7 {[%emt 0:04:18]} 24. Nxd4 {[%emt 0:07:54]} (24. f4 $142 $1) 24... cxd4 $16 {[%emt 0:00:24]} 25. g3 {[%emt 0:00:52]} Rh8 {[%emt 0:03:01]} 26. f4 {[%emt 0:00:29]} Raf8 {[%emt 0:04:31]} 27. Nf3 {[%emt 0:06:07]} Bc8 {[%emt 0:04:08]} 28. Bd2 {[%emt 0:03:40]} Bg4 {[%emt 0:04:47]} 29. Qg2 {[%emt 0:00:53]} (29. c5 {looks sharper.} Nxc5 30. bxc5 dxc5 31. Rbb1) 29... Bxf3 {[%emt 0:05:27]} 30. Rbxf3 {[%emt 0:00:33] And now fxg5 would win.} g4 {[%emt 0:01:54]} 31. Rb3 {[%emt 0:00:11]} Rh7 {[%emt 0:01:30]} 32. Qe2 {[%emt 0:01:30][%cal Oc4c5]} Kh8 {[%emt 0:00:40]} (32... Nb8 $142) 33. a4 {[%emt 0:01:22]} (33. c5 $142 $1 Nc7 34. c6) 33... Nb8 {[%emt 0:00:56]} 34. Ra1 {[%emt 0:00:37] White is more active.} Rg8 {[%emt 0:01:47]} ({Better is} 34... Rc8 $14) 35. a5 $18 {[%emt 0:02:01]} h4 {[%emt 0:00:34]} 36. axb6 {[%emt 0:01:40]} axb6 {[%emt 0:00:35]} 37. Qf2 {[%emt 0:01:52]} ({White should try} 37. Rba3 $18) 37... hxg3 {[%emt 0:02:44]} 38. Rxg3 {[%emt 0:00:13]} exf4 {[%emt 0:00:14]} 39. Bxf4 {[%emt 0:01:07]} Ne5 {[%emt 0:00:12]} 40. Bd1 {[%emt 0:02:31]} ({And not} 40. Qxd4 Nf3 41. Rxf3 (41. Qxb6 $2 Rxh2#) 41... gxf3 $15) (40. Ra8 $16) 40... Nd3 $1 $11 {[%emt 0:02:47]} 41. Rxd3 {[%emt 0:00:33]} Qxe4+ {[%emt 0:00:07]} 42. Kg1 {[%emt 0:00:07]} Qxd3 {[%emt 0:00:24]} 43. Bc2 {[%emt 0:00:22]} Qc3 {[%emt 0:00:48]} 44. Rd1 {[%emt 0:00:19] Dancing on a razor blade.} Rh3 {[%emt 0:00:52]} 45. Bxd6 {[%emt 0:03:37] A strong pair of Bishops.} d3 {[%emt 0:00:33]} 46. Ba4 $40 {[%emt 0:04:56][%mdl 128] White mounts an attack.} Rf3 {[%emt 0:00:25] Against Bg3} 47. Qh4+ {[%emt 0:01:13]} (47. Qxb6 $2 {is the wrong capture.} g3 $1 48. hxg3 Qb2 $1 $19) 47... Kg7 {[%emt 0:00:01] Strongly threatening ...Qd4+.} 48. Kh1 $2 {[%emt 0:00:09]} (48. Bf8+ $1 $11 Kxf8 49. Qh6+ Rg7 50. Qh8+ Rg8 51. Qh6+ Rg7 52. Qh8+ Rg8 53. Qh6+) 48... Qd4 $4 {[%emt 0:01:03][%mdl 8192]} (48... Qxc4 $19 49. Rg1 {[#]} Rf1 $3 {[%mdl 512]} 50. Rxf1 Qxd5+ 51. Kg1 Qxd6) 49. Rg1 $18 {[%emt 0:00:58][%cal Bd1g1,Bg1e1,Be1e7][%mdl 32]} f5 {[%emt 0:01:03]} 50. Re1 {[%emt 0:06:55] White wants to mate with Qg5+.} Qf6 {[%emt 0:00:00] Prevents Qg5+.} 51. Re7+ {[%emt 0:01:44] White mates.} Kg6 {[%emt 0:00:14]} 52. Qh7+ {[%emt 0:00:40]} Kg5 {[%emt 0:00:10]} 53. Qxg8+ {[%emt 0:00:08] Weighted Error Value: White=0.21 (precise) /Black=0.34} 1-0

[Event "ITT 1st Parada Jamundi 2022"]
[Site "Jamundi Valle"]
[Date "2022.12.07"]
[Round "1.12"]
[White "Mora Munoz, Alejandro"]
[Black "Herrera, Juan Sebastian"]
[Result "1/2-1/2"]
[ECO "B06"]
[WhiteElo "1959"]
[BlackElo "2297"]
[Annotator "TA"]
[PlyCount "115"]
[EventDate "2022.12.05"]
[EventType "swiss"]
[EventCountry "COL"]
[SourceTitle "playchess.com"]
[Source "ChessBase"]
[SourceQuality "1"]
[TimeControl "5400+30"]

{[%evp 10,115,56,36,58,33,47,45,50,0,5,0,0,0,12,-11,-11,-10,-8,-39,-7,-119,-100,-123,-110,-114,-115,-120,-110,-218,-192,-195,-146,-161,-169,-218,-220,-274,-113,-110,-109,-108,-102,-102,-100,-220,-170,-168,-115,-193,-207,-190,-143,-235,-234,-237,-235,-241,-245,-228,-235,-239,-233,-211,-208,-226,-118,-117,0,-196,-93,-102,-54,-54,-62,-54,-14,-22,0,0,0,0,3,0,0,0,0,0,23,28,27,0,18,0,0,0,0,0,0,0,0,0,0,0,0,0,0,0]} 1. e4 {[%emt 0:02:30]} g6 {[%emt 0:00:09]} 2. d4 {[%emt 0:00:18]} Bg7 {[%emt 0:00:08]} 3. Nc3 {[%emt 0:00:33]} d6 {[%emt 0:00:05]} 4. Be3 {[%emt 0:00:17]} a6 {[%emt 0:00:05]} 5. Qd2 {[%emt 0:03:01]} b5 {[%emt 0:00:59]} 6. f3 {[%emt 0:01:38]} Bb7 {[%emt 0:00:07] B06: Modern Defence.} 7. a4 {[%emt 0:05:00]} b4 {[%emt 0:00:10] 7...c6 is not played anymore.} 8. Nd1 {[%emt 0:08:49]} a5 {[%emt 0:00:25] White is slightly better.} 9. Bc4 {[%emt 0:02:03] [#]} Nf6 $146 {[%emt 0:07:48]} ({Predecessor:} 9... Nd7 10. Nh3 Ngf6 11. Bh6 O-O 12. Bxg7 Kxg7 13. Ng5 d5 14. exd5 Bxd5 15. Bxd5 Nxd5 {½-½ (48) Sedivy,M (2159)-Kiratzopoulos,E (2217) Czech Republic 2019}) 10. Bh6 {[%emt 0:07:20]} O-O {[%emt 0:00:28]} 11. Bb3 {[%emt 0:04:32]} Nbd7 {[%emt 0:06:22]} 12. Bxg7 {[%emt 0:18:39]} Kxg7 {[%emt 0:00:09]} 13. Ne3 {[%emt 0:00:14]} c5 {[%emt 0:01:22]} 14. c3 {[%emt 0:06:00]} Ba6 {[%emt 0:03:27]} 15. cxb4 {[%emt 0:03:25]} (15. Ne2 $11 {keeps the balance.}) 15... axb4 {[%emt 0:05:02]} (15... cxb4 $6 16. Ne2 $11) 16. Bc4 {[%emt 0:06:49]} Bxc4 {[%emt 0:02:38]} 17. Nxc4 {[%emt 0:00:08]} cxd4 {[%emt 0:00:06]} 18. Qxd4 {[%emt 0:00:28]} Nc5 {[%emt 0:02:19]} 19. Qd1 {[%emt 0:04:50] Prevents Nb3.} (19. Rd1 $17 {was necessary.}) 19... d5 {[%emt 0:06:27]} 20. exd5 {[%emt 0:02:03]} Qxd5 {[%emt 0:00:10]} (20... Qc7 $19 {Hoping for ...Rad8.} 21. a5 Rad8) 21. Qxd5 $17 {[%emt 0:05:14]} Nxd5 {[%emt 0:00:02]} 22. Rd1 {[%emt 0:00:45]} (22. Ne2 $142) 22... Nf4 $19 {[%emt 0:05:33][%cal Of8c8] Threatens to win with ...Rfc8!} 23. g3 {[%emt 0:03:43]} Nfe6 {[%emt 0:01:44]} (23... Nfd3+ $19 {and Black stays clearly on top.} 24. Ke2 Rxa4 25. Rxd3 Nxd3 26. Kxd3 Ra1) 24. a5 $17 {[%emt 0:01:21]} Nb3 {[%emt 0:00:10]} 25. Ne2 {[%emt 0:04:04]} Nxa5 {[%emt 0:00:09]} 26. Nxa5 {[%emt 0:00:33]} Rxa5 {[%emt 0:00:05]} 27. Kd2 {[%emt 0:03:13]} (27. Kf2 $17) 27... Re5 {[%emt 0:06:12]} 28. Rhe1 {[%emt 0:03:06]} Nc5 {[%emt 0:04:33]} ({Better is} 28... Kf6 $19 29. f4 Rd8+ 30. Kc1 Rxd1+ 31. Kxd1 Rh5) 29. Nf4 {[%emt 0:02:03]} (29. Nd4 $17 Rd5 30. Ke2) 29... Nb3+ $19 {[%emt 0:00:34]} 30. Kd3 {[%emt 0:00:59]} Rc5 {[%emt 0:08:05]} ({Black should play} 30... Rd8+ $19 31. Kc2 Nd4+ 32. Rxd4 b3+ 33. Kxb3 (33. Kc3 $2 Rc8+ 34. Rc4 Rxc4+ 35. Kxb3 Rxe1 $19) 33... Rb8+ 34. Kc2 Rxe1) 31. Rxe7 {[%emt 0:00:56]} (31. Ke3 $17 {might work better.}) 31... Rd8+ {[%emt 0:00:11]} 32. Ke2 {[%emt 0:00:12]} Rc2+ {[%emt 0:00:14]} 33. Ke1 {[%emt 0:00:04]} Rxd1+ {[%emt 0:00:07]} 34. Kxd1 {[%emt 0:00:05][%mdl 4096] Endgame KRN-KRN} Rd2+ {[%emt 0:00:05]} (34... Rxb2 35. Re2 Rxe2 36. Kxe2 $17) 35. Ke1 {[%emt 0:00:11]} Rxb2 {[%emt 0:00:03]} ({And not} 35... Rxh2 36. Re2 Nd4 37. Rxh2) 36. Re2 {[%emt 0:01:53]} Rb1+ {[%emt 0:00:14]} 37. Kf2 {[%emt 0:00:05]} Nd4 {[%emt 0:02:25]} (37... Nc1 $19 38. Rd2 Ra1) 38. Rd2 $17 {[%emt 0:00:36]} Nb3 {[%emt 0:01:45]} (38... Nf5 $17 {And now ...b3 would win.} 39. Ke2 b3) 39. Rd7 $2 {[%emt 0:00:53] [#]} (39. Re2 $1 $11 {and White stays safe.}) 39... Rb2+ {[%emt 0:10:03]} (39... Na5 $1 $19 40. Ne6+ Kf6) 40. Ke3 {[%emt 0:00:13]} Kf8 {[%emt 0:03:22]} (40... Rxh2 $17 {Strongly threatening ...Na5.} 41. Nd3 Rg2) 41. Nd3 {[%emt 0:00:37]} Rxh2 {[%emt 0:01:09]} 42. Nxb4 {[%emt 0:00:27]} h5 {[%emt 0:00:34]} (42... Nc5 $5 {[%cal Rc5d7]} 43. Rd5 Ne6 $17) 43. Nd3 {[%emt 0:00:46]} g5 {[%emt 0:02:20]} 44. Ne5 {[%emt 0:00:28]} Nc1 {[%emt 0:01:22] aiming for ...Re2+.} 45. Rxf7+ {[%emt 0:00:45]} Ke8 {[%emt 0:00:29]} 46. Rf5 {[%emt 0:00:21]} Re2+ {[%emt 0:00:15]} 47. Kd4 {[%emt 0:00:12]} h4 {[%emt 0:00:05]} 48. Rxg5 {[%emt 0:01:00]} h3 {[%emt 0:00:07]} 49. Rh5 {[%emt 0:00:02]} h2 {[%emt 0:00:10]} 50. Ng4 {[%emt 0:00:09]} (50. Kd5 {is interesting.} Kf8 51. f4 Kg7 52. Nf3) 50... Rg2 {[%emt 0:02:20] The position is equal.} ({Don't take} 50... Nb3+ 51. Kd5 $16 (51. Kc3 Nc1 $16)) 51. Rxh2 {[%emt 0:00:23]} (51. Ke5 {feels hotter.} Ne2 52. Kf6 Nxg3 53. Rh8+) 51... Ne2+ {[%emt 0:00:05]} 52. Ke3 {[%emt 0:00:44]} Rxh2 {[%emt 0:00:07]} 53. Nxh2 {[%emt 0:00:03]} Nxg3 $11 {[%emt 0:00:06] KN-KN} 54. Kf4 {[%emt 0:00:25]} Ne2+ {[%emt 0:00:06]} 55. Kg5 {[%emt 0:00:39]} Nd4 {[%emt 0:00:06]} 56. f4 {[%emt 0:00:21]} Ne6+ {[%emt 0:00:04]} 57. Kf5 {[%emt 0:00:02]} Nxf4 {[%emt 0:00:06][%mdl 64] [#]} 58. Kxf4 {[%emt 0:00:08] Black had all chances to win.   Weighted Error Value: White=0.29 (precise) /Black=0.21 (precise)} 1/2-1/2